bitfinex-derivatives/quotes_BNBF0:USTF0_20250221
["timestamp","ask_amount","ask_price","bid_price","bid_amount"]
[1740111551806,0.30614744,653.28,652.3,2.17520214]
[1740111552000,0.30614744,653.28,652.31,2.17520214]
[1740111552202,0.30614744,653.28,652.32,2.17520214]
[1740111552400,0.30614744,653.28,652.33,2.17520214]
[1740111552603,0.30614744,653.28,652.34,2.17520214]
[1740111552800,1.14772083,653.23,652.35,2.17520214]
[1740111553005,0.30617556,653.22,652.36,2.17520214]
[1740111553208,0.30617556,653.22,652.37,2.17520214]
[1740111553406,0.30617556,653.22,652.38,2.17520214]
[1740111553706,0.30617556,653.22,652.39,2.17520214]
[1740111553906,0.30617556,653.22,652.36,2.97692479]
[1740111554107,0.30617556,653.22,652.37,2.17717255]
[1740111554300,0.30617556,653.22,652.38,2.17717255]
[1740111554504,0.30617556,653.22,652.39,5.15409734]
[1740111554806,0.30617556,653.22,652.4,2.17717255]
[1740111555002,0.30617556,653.22,652.39,2.97692479]
[1740111555202,0.30617556,653.22,652.4,2.17774416]
[1740111555404,0.30617556,653.22,652.41,2.17838541]
[1740111555606,0.30617556,653.22,652.39,2.97692479]
[1740111555806,0.30617556,653.22,652.4,2.17837189]
[1740111556107,0.30617556,653.22,652.2,1.15061681]
[1740111556303,0.30617556,653.22,652.21,2.17838482]
[1740111556504,0.30617556,653.22,652.22,2.17838482]
[1740111556705,0.30617556,653.22,652.23,2.17838482]
[1740111556905,0.30617556,653.22,652.24,2.17838482]
[1740111557102,0.30617556,653.22,652.25,2.17838482]
[1740111557305,0.30617556,653.22,652.26,2.17838482]
[1740111557506,0.30617556,653.22,652.27,2.17838482]
[1740111557706,0.30617556,653.22,652.28,2.17838482]
[1740111558009,0.30617556,653.22,652.22,2.98147436]
[1740111558010,0.30617556,653.22,652.29,2.17838482]
[1740111558208,0.30617556,653.22,652.3,2.17838482]
[1740111558408,0.30617556,653.22,652.31,2.17838482]
[1740111558604,0.30617556,653.22,652.22,2.98147436]
[1740111558605,0.30617556,653.22,652.32,2.17838482]
[1740111558802,0.30617556,653.22,652.22,2.98147436]
[1740111558803,0.30617556,653.22,652.33,2.17838482]
[1740111559008,0.30617556,653.22,652.34,2.17838482]
[1740111559208,0.30617556,653.22,652.35,2.98147436]
[1740111559609,0.30617556,653.22,652.36,2.18033827]
[1740111559809,0.30617556,653.22,652.35,2.98147436]
[1740111560002,0.30617556,653.22,652.36,2.18031712]
[1740111560206,0.30617556,653.22,652.37,2.18031712]
[1740111560406,0.30617556,653.22,652.35,2.98147436]
[1740111560605,0.30617556,653.22,652.38,2.98147436]
[1740111561910,0.30617556,653.22,652.39,2.98147436]
[1740111563210,0.30617556,653.22,652.4,2.18022676]
[1740111563512,0.30617556,653.22,652.41,2.18022676]
[1740111563810,0.30617556,653.22,652.39,2.98147436]
[1740111563811,0.30617556,653.22,652.42,5.16170112]
[1740111564010,0.30617556,653.22,652.43,2.18022676]
[1740111564205,0.30617556,653.22,652.44,2.18022676]
[1740111564404,0.30617556,653.22,652.45,2.18022676]
[1740111564609,0.30617556,653.22,652.46,2.18022676]
[1740111564809,0.30617556,653.22,652.47,2.18022676]
[1740111565009,0.30617556,653.22,652.48,5.16170112]
[1740111565211,0.30617556,653.22,652.48,2.98147436]
[1740111566911,0.30617556,653.22,652.49,2.98147436]
[1740111568312,0.30617556,653.22,652.5,2.98147436]
[1740111569908,0.30617556,653.22,652.51,2.98147436]
[1740111571514,0.30617556,653.22,652.52,2.98147436]
[1740111573018,0.30617556,653.22,652.33,1.15061681]
[1740111573213,0.30617556,653.22,652.34,2.17990284]
[1740111573515,0.30617556,653.22,652.35,2.17990284]
[1740111573713,0.30617556,653.22,652.36,2.17990284]
[1740111573915,0.30617556,653.22,652.35,2.9825376]
[1740111573916,0.30617556,653.22,652.37,2.17990284]
[1740111574216,0.30617556,653.22,652.38,2.17990284]
[1740111574410,0.30617556,653.22,652.39,2.17990284]
[1740111574613,0.30617556,653.22,652.4,2.17990284]
[1740111574813,0.30617556,653.22,652.35,2.9825376]
[1740111575010,0.30617556,653.22,652.36,2.17984795]
[1740111575210,0.30617556,653.22,652.37,5.16238555]
[1740111575414,0.30617556,653.22,652.38,2.17984795]
[1740111575616,0.30617556,653.22,652.39,2.17984795]
[1740111575816,0.30617556,653.22,652.37,2.9825376]
[1740111577213,0.30617556,653.22,652.38,2.9825376]
[1740111578819,0.30617556,653.22,652.28,1.15061681]
[1740111580316,0.30617556,653.22,652.26,1.15061681]
[1740111582421,1.134,653.21,652.26,1.15061681]
[1740111582619,0.30618493,653.2,652.26,1.15061681]
[1740111582924,0.30618493,653.2,652.03,1.15061681]
[1740111586521,0.30618493,653.2,652.04,2.17941812]
[1740111586727,0.30618493,653.2,652.05,2.17941812]
[1740111586922,0.30618493,653.2,652.06,2.17941812]
[1740111587126,0.30618493,653.2,652.07,2.17941812]
[1740111587326,0.30618493,653.2,652.08,2.17941812]
[1740111587625,0.30618493,653.2,652.09,2.17941812]
[1740111587825,0.30618493,653.2,652.1,2.17941812]
[1740111588026,0.30618493,653.2,652.11,2.17941812]
[1740111588233,0.30618493,653.2,652.12,5.1612128]
[1740111588530,0.30618493,653.2,652.13,2.17941812]
[1740111588731,0.30618493,653.2,652.14,2.17941812]
[1740111589032,0.30618493,653.2,652.15,2.17941812]
[1740111589231,0.30618493,653.2,652.16,2.17941812]
[1740111589432,0.30618493,653.2,652.17,2.17941812]
[1740111589632,0.30618493,653.2,652.18,2.17941812]
[1740111589932,0.30618493,653.2,652.19,5.1612128]
[1740111590232,0.30618493,653.2,652.2,2.17941812]
[1740111590433,0.30618493,653.2,652.21,2.17941812]
[1740111590734,0.30618493,653.2,652.22,2.17941812]
[1740111590935,0.30618493,653.2,652.23,2.17941812]
[1740111591131,0.30618493,653.2,652.24,2.17941812]
[1740111591331,0.30618493,653.2,652.25,5.1612128]
[1740111591632,0.30618493,653.2,652.26,2.17941812]
[1740111591835,0.30618493,653.2,652.27,2.17941812]
[1740111592028,0.30618493,653.2,652.28,2.17941812]
[1740111592231,0.30618493,653.2,652.29,2.17941812]
[1740111592432,0.30618493,653.2,652.3,2.17941812]
[1740111592632,0.30618493,653.2,652.31,2.17941812]
[1740111592832,0.30618493,653.2,652.31,2.98179468]
[1740111594737,0.30618493,653.2,652.21,1.15061681]
[1740111597737,0.30618493,653.2,652.13,1.15061681]
[1740111597937,0.30618493,653.2,652.14,2.17909016]
[1740111598137,0.30618493,653.2,652.15,2.17909016]
[1740111598340,0.30618493,653.2,652.16,2.17909016]
[1740111598533,0.30618493,653.2,652.17,2.17909016]
[1740111598734,0.30618493,653.2,652.18,2.17909016]
[1740111598938,0.30618493,653.2,652.19,2.17909016]
[1740111599137,0.30618493,653.2,652.14,2.98129207]
[1740111599335,0.30618493,653.2,652.15,2.17901424]
[1740111599533,0.30618493,653.2,652.16,2.17901424]
[1740111599735,0.30618493,653.2,652.17,2.17901424]
[1740111599937,0.30618493,653.2,652.16,2.98129207]
[1740111600136,0.30618493,653.2,652.17,2.17900833]
[1740111600339,0.30618493,653.2,652.16,2.98129207]
[1740111601135,0.30618493,653.2,652.15,1.15061681]
[1740111603439,0.30618493,653.2,651.88,1.15061681]
[1740111603844,0.30618493,653.2,651.89,5.1556269]
[1740111604043,0.30618493,653.2,651.9,2.17720715]
[1740111604243,0.30618493,653.2,651.89,2.97841975]
[1740111604244,0.30618493,653.2,651.91,2.17720715]
[1740111604444,0.30618493,653.2,651.89,2.97841975]
[1740111604645,0.30618493,653.2,651.9,2.17658271]
[1740111604839,0.30618493,653.2,651.91,2.17658271]
[1740111605038,0.30618493,653.2,651.92,2.17658271]
[1740111605239,0.30618493,653.2,651.92,2.97841975]
[1740111605843,0.30618493,653.2,651.93,2.17598586]
[1740111606043,0.30618493,653.2,651.92,2.97841975]
[1740111607142,0.30618493,653.2,651.76,1.15061681]
[1740111609847,0.30618493,653.2,651.77,2.17326513]
[1740111610048,0.30618493,653.2,651.78,2.17326513]
[1740111610246,0.30618493,653.2,651.76,1.15061681]
[1740111610446,0.30618493,653.2,651.79,2.97154806]
[1740111611948,0.30618493,653.2,651.8,2.97154806]
[1740111613048,0.30618493,653.2,651.53,1.15061681]
[1740111613241,0.30618493,653.2,651.54,2.17058559]
[1740111613440,0.30618493,653.2,651.55,5.13872511]
[1740111613644,0.30618493,653.2,651.56,2.17058559]
[1740111613843,0.30618493,653.2,651.57,2.17058559]
[1740111614043,0.30618493,653.2,651.58,2.17058559]
[1740111614244,0.30618493,653.2,651.59,2.17058559]
[1740111614442,0.30618493,653.2,651.6,2.17058559]
[1740111614643,0.30618493,653.2,651.61,2.17058559]
[1740111614843,0.30618493,653.2,651.55,2.96813952]
[1740111614844,0.30618493,653.2,651.62,2.17058559]
[1740111615045,0.30618493,653.2,651.63,5.13872511]
[1740111615245,0.30618493,653.2,651.64,2.17058559]
[1740111615443,0.30618493,653.2,651.63,2.96813952]
[1740111615444,0.30618493,653.2,651.65,2.17058559]
[1740111615644,0.30618493,653.2,651.66,2.17058559]
[1740111615849,0.30618493,653.2,651.67,2.17058559]
[1740111616048,0.30618493,653.2,651.68,2.17058559]
[1740111616250,0.30618493,653.2,651.69,2.17058559]
[1740111616445,0.30618493,653.2,651.7,2.17058559]
[1740111616647,0.30618493,653.2,651.71,2.17058559]
[1740111616850,0.30618493,653.2,651.72,2.17058559]
[1740111617051,0.30618493,653.2,651.73,2.17058559]
[1740111617248,0.30618493,653.2,651.74,2.17058559]
[1740111617448,0.30618493,653.2,651.75,2.17058559]
[1740111617646,0.30618493,653.2,651.76,2.17058559]
[1740111617843,0.30618493,653.2,651.77,5.13872511]
[1740111618051,0.30618493,653.2,651.78,2.17058559]
[1740111618252,1.56818493,653.2,651.79,2.17058559]
[1740111618451,1.56818493,653.2,651.8,2.17058559]
[1740111618652,1.56818493,653.2,651.81,2.17058559]
[1740111618952,1.56818493,653.2,651.77,2.96813952]
[1740111619149,1.56818493,653.2,651.78,2.16728102]
[1740111619346,1.56818493,653.2,651.79,2.16728102]
[1740111619551,1.56818493,653.2,651.8,2.16728102]
[1740111619851,1.56818493,653.2,651.79,2.96813952]
[1740111620052,1.56818493,653.2,651.8,2.16692811]
[1740111620251,1.56818493,653.2,651.81,2.16667007]
[1740111620453,1.56818493,653.2,651.82,2.16667007]
[1740111620647,1.56818493,653.2,651.79,2.96813952]
[1740111620848,1.56818493,653.2,651.8,2.1665539]
[1740111621050,1.56818493,653.2,651.81,5.13469342]
[1740111621251,1.56818493,653.2,651.82,2.1665539]
[1740111621453,1.56818493,653.2,651.83,2.16636252]
[1740111621653,1.56818493,653.2,651.81,2.96813952]
[1740111621954,1.56818493,653.2,651.82,2.16638341]
[1740111622154,1.56818493,653.2,651.83,2.16638341]
[1740111622452,1.56818493,653.2,651.81,2.96813952]
[1740111622847,1.56818493,653.2,651.82,2.96813952]
[1740111624352,1.56818493,653.2,651.83,2.96813952]
[1740111626356,1.56818493,653.2,651.47,1.15061681]
[1740111626655,1.56818493,653.2,651.48,2.16598678]
[1740111626860,1.56818493,653.2,651.49,5.12883873]
[1740111627055,1.56818493,653.2,651.5,2.16598678]
[1740111627254,1.56818493,653.2,651.51,2.16598678]
[1740111627455,1.56818493,653.2,651.52,2.16598678]
[1740111627653,1.56818493,653.2,651.53,2.16598678]
[1740111627855,1.56818493,653.2,651.54,2.16598678]
[1740111628053,1.56818493,653.2,651.55,2.16598678]
[1740111628252,1.56818493,653.2,651.56,2.16598678]
[1740111628453,1.56818493,653.2,651.57,5.12883873]
[1740111628653,1.56818493,653.2,651.57,2.96285195]
[1740111629751,1.56818493,653.2,651.56,1.15061681]
[1740111631762,1.56818493,653.2,651.55,1.15061681]
[1740111635861,1.56818493,653.2,651.62,1.15061681]
[1740111638168,1.56818493,653.2,651.63,2.16777111]
[1740111638369,1.56818493,653.2,651.64,2.16777111]
[1740111638575,1.56818493,653.2,651.65,2.16777111]
[1740111638769,1.56818493,653.2,651.66,2.16777111]
[1740111638970,1.14772083,653.05,651.67,2.16777111]
[1740111639169,0.30626464,653.03,651.68,2.16777111]
[1740111639369,0.30626464,653.03,651.69,2.16777111]
[1740111639671,0.30626464,653.03,651.7,2.16777111]
[1740111639870,0.30626464,653.03,651.71,2.16777111]
[1740111640065,0.30626464,653.03,651.72,2.16777111]
[1740111640268,0.30626464,653.03,651.73,2.16777111]
[1740111640570,0.30626464,653.03,651.74,2.16777111]
[1740111640772,0.30626464,653.03,651.75,2.16777111]
[1740111641070,0.30626464,653.03,651.7,2.96531988]
[1740111641071,0.30626464,653.03,651.76,5.13309099]
[1740111641266,0.30626464,653.03,651.77,2.16777111]
[1740111641471,0.30626464,653.03,651.78,2.16777111]
[1740111641771,0.30626464,653.03,651.76,2.96531988]
[1740111641772,1.14772083,652.87,651.79,2.16777111]
[1740111641970,0.30634439,652.86,651.8,2.16777111]
[1740111642165,0.30634439,652.86,651.81,2.16777111]
[1740111642370,0.30634439,652.86,651.82,2.16777111]
[1740111642570,0.30634439,652.86,651.83,2.16777111]
[1740111642770,0.30634439,652.86,651.81,2.96531988]
[1740111643670,0.30634439,652.86,651.77,1.15061681]
[1740111644670,0.30634439,652.86,651.8,1.15061681]
[1740111647174,0.30634439,652.86,651.87,1.15061681]
[1740111652878,0.30634439,652.86,651.88,2.9719487]
[1740111653884,0.30634439,652.86,651.89,2.17315494]
[1740111654180,0.30634439,652.86,651.9,2.17315494]
[1740111654379,0.30634439,652.86,651.91,2.17315494]
[1740111654576,0.30634439,652.86,651.92,2.17315494]
[1740111654777,0.30634439,652.86,651.93,2.17315494]
[1740111654979,0.30634439,652.86,651.94,5.14510364]
[1740111655278,0.30634439,652.86,651.95,2.17315494]
[1740111655477,0.30634439,652.86,651.96,2.17315494]
[1740111655680,0.30634439,652.86,651.97,2.17315494]
[1740111655876,0.30634439,652.86,651.98,2.17315494]
[1740111656083,0.30634439,652.86,651.99,2.17315494]
[1740111656277,0.30634439,652.86,652.0,2.17315494]
[1740111656584,0.30634439,652.86,652.01,2.17315494]
[1740111656783,0.30634439,652.86,652.02,2.17315494]
[1740111657081,0.30634439,652.86,652.03,2.17504946]
[1740111657281,0.30634439,652.86,652.04,2.17579695]
[1740111657481,0.30634439,652.86,652.01,2.9719487]
[1740111657681,0.30634439,652.86,652.02,2.17582326]
[1740111657881,0.30634439,652.86,652.03,5.14777196]
[1740111658082,0.30634439,652.86,652.03,2.9719487]
[1740111658382,0.30634439,652.86,652.04,2.17672033]
[1740111658582,0.30634439,652.86,652.05,2.17672033]
[1740111658783,0.30634439,652.86,652.06,2.9719487]
[1740111659386,0.30634439,652.86,652.07,2.17778532]
[1740111659582,0.30634439,652.86,652.08,2.17778532]
[1740111659790,0.30634439,652.86,652.09,2.9719487]
[1740111660788,0.30634439,652.86,652.1,2.9719487]
[1740111662488,0.30634439,652.86,651.97,1.15061681]
[1740111662688,0.30634439,652.86,651.98,2.17823481]
[1740111662890,0.30634439,652.86,651.99,2.17823481]
[1740111663084,0.30634439,652.86,652.0,2.17823481]
[1740111663288,0.30634439,652.86,652.01,5.15820126]
[1740111663491,0.30634439,652.86,652.02,2.17823481]
[1740111663789,0.30634439,652.86,652.03,2.17823481]
[1740111663988,0.30634439,652.86,652.04,2.17823481]
[1740111664190,0.30634439,652.86,652.05,2.17823481]
[1740111664489,0.30634439,652.86,652.06,2.17823481]
[1740111664691,0.30634439,652.86,652.07,2.17823481]
[1740111664887,0.30634439,652.86,652.01,2.97996645]
[1740111665084,0.30634439,652.86,652.02,5.1584982]
[1740111665283,0.30634439,652.86,652.03,2.17853175]
[1740111665486,0.30634439,652.86,652.04,2.17853175]
[1740111665688,0.30634439,652.86,652.05,2.17853175]
[1740111665885,0.30634439,652.86,652.02,2.97996645]
[1740111665886,0.30634439,652.86,652.06,2.17853175]
[1740111666085,0.30634439,652.86,652.07,2.17853175]
[1740111666285,0.30634439,652.86,652.02,2.97996645]
[1740111666487,0.30634439,652.86,652.03,2.17887248]
[1740111666688,0.30634439,652.86,652.04,2.17887248]
[1740111666887,0.30634439,652.86,652.05,5.15883893]
[1740111667090,0.30634439,652.86,652.06,2.17887248]
[1740111667291,0.30634439,652.86,652.07,2.17887248]
[1740111667493,0.30634439,652.86,652.08,2.17887248]
[1740111667793,0.30634439,652.86,652.05,2.97996645]
[1740111667986,0.30634439,652.86,652.06,2.17881429]
[1740111668187,0.30634439,652.86,652.07,5.15878074]
[1740111668387,0.30634439,652.86,652.07,2.97996645]
[1740111669590,0.30634439,652.86,651.93,1.15061681]
[1740111669795,0.30634439,652.86,651.94,2.17881313]
[1740111669988,0.30634439,652.86,651.95,2.17881313]
[1740111670188,0.30634439,652.86,651.93,1.15061681]
[1740111670393,0.30634439,652.86,651.94,5.15942843]
[1740111670590,0.30634439,652.86,651.94,2.98058732]
[1740111671593,0.30634439,652.86,651.94,4.13120413]
[1740111671796,0.30634439,652.86,651.94,1.15061681]
[1740111674292,0.30634439,652.86,651.81,1.15061681]
[1740111674492,0.30634439,652.86,651.82,2.17915447]
[1740111674693,0.30634439,652.86,651.83,2.17915447]
[1740111674897,0.30634439,652.86,651.84,5.16016633]
[1740111675199,0.30634439,652.86,651.85,2.17915447]
[1740111675401,0.30634439,652.86,651.86,2.17915447]
[1740111675600,0.30634439,652.86,651.87,2.17915447]
[1740111675899,0.30634439,652.86,651.84,2.98101186]
[1740111676103,0.30634439,652.86,651.88,2.98101186]
[1740111676300,0.30634439,652.86,651.89,2.17927526]
[1740111676497,0.30634439,652.86,651.88,2.98101186]
[1740111677402,0.30634439,652.86,651.89,2.98101186]
[1740111679205,0.30634439,652.86,651.82,1.15061681]
[1740111679404,0.30634439,652.86,651.83,2.17962835]
[1740111679705,0.30634439,652.86,651.84,2.17962835]
[1740111679906,0.30634439,652.86,651.85,2.17962835]
[1740111680099,0.30634439,652.86,651.86,2.17962835]
[1740111680302,0.30634439,652.86,651.87,2.17962835]
[1740111680500,0.30634439,652.86,651.88,2.17962835]
[1740111680705,0.30634439,652.86,651.89,2.17962835]
[1740111680900,0.30634439,652.86,651.9,2.17962835]
[1740111681107,0.30634439,652.86,651.91,2.17962835]
[1740111681305,0.30634439,652.86,651.92,2.17962835]
[1740111681506,0.30634439,652.86,651.83,2.98168254]
[1740111681709,0.30634439,652.86,651.93,2.98168254]
[1740111682410,0.30634439,652.86,652.0,1.15061681]
[1740111685111,0.30634439,652.86,651.97,1.15061681]
[1740111688213,0.30634439,652.86,651.99,1.15061681]
[1740111691517,0.30634439,652.86,652.0,2.18052083]
[1740111691817,0.30634439,652.86,651.99,1.15061681]
[1740111692015,0.30634439,652.86,652.01,2.98284042]
[1740111692814,0.30634439,652.86,652.02,2.18061023]
[1740111693011,0.30634439,652.86,652.03,2.18061023]
[1740111693212,0.30634439,652.86,652.04,2.18061023]
[1740111693412,0.30634439,652.86,652.05,2.18061023]
[1740111693616,0.30634439,652.86,652.06,2.18061023]
[1740111693812,0.30634439,652.86,652.04,2.98284042]
[1740111693813,0.30634439,652.86,652.07,2.18061023]
[1740111694018,0.30634439,652.86,652.08,2.18061023]
[1740111694313,0.30634439,652.86,652.09,2.18061023]
[1740111694509,0.30634439,652.86,652.1,2.18061023]
[1740111694716,0.30634439,652.86,652.11,2.18061023]
[1740111694910,0.30634439,652.86,652.1,2.98284042]
[1740111695116,0.30634439,652.86,652.11,2.18084784]
[1740111695320,0.30634439,652.86,652.1,2.98284042]
[1740111695819,0.30634439,652.86,652.0,1.15061681]
[1740111696020,0.30634439,652.86,652.01,2.1809897]
[1740111696216,0.30634439,652.86,652.02,2.1809897]
[1740111696416,0.30634439,652.86,652.03,5.16462887]
[1740111696622,0.30634439,652.86,652.04,2.18106241]
[1740111696818,0.30634439,652.86,652.05,2.18107197]
[1740111697017,0.30634439,652.86,652.06,2.18107197]
[1740111697222,0.30634439,652.86,652.03,2.98363917]
[1740111697422,0.30634439,652.86,652.04,2.1812516]
[1740111697621,0.30634439,652.86,652.05,5.16489077]
[1740111697815,0.30634439,652.86,652.06,2.1812516]
[1740111698119,0.30634439,652.86,652.05,2.98363917]
[1740111699521,0.30634439,652.86,651.93,1.15061681]
[1740111699723,0.30634439,652.86,651.94,3.33241949]
[1740111700021,0.30634439,652.86,651.95,2.18180268]
[1740111700224,0.30634439,652.86,651.96,2.18216108]
[1740111700417,0.30634439,652.86,651.94,4.13524446]
[1740111700619,0.30634439,652.86,651.95,2.18217146]
[1740111700820,0.30634439,652.86,651.96,2.18217146]
[1740111701021,0.30634439,652.86,651.94,4.13524446]
[1740111701222,0.30634439,652.86,651.95,5.16679729]
[1740111701422,0.30634439,652.86,651.96,2.18216964]
[1740111701622,0.30634439,652.86,651.95,2.98462765]
[1740111703121,0.30634439,652.86,651.94,1.15061681]
[1740111707026,0.30634439,652.86,651.72,1.15061681]
[1740111707225,0.30634439,652.86,651.73,2.18232079]
[1740111707419,0.30634439,652.86,651.72,1.15061681]
[1740111707420,0.30634439,652.86,651.74,2.18232079]
[1740111707623,0.30634439,652.86,651.75,2.18232079]
[1740111707820,0.30634439,652.86,651.76,2.18232079]
[1740111708020,0.30634439,652.86,651.77,2.18232079]
[1740111708222,0.30634439,652.86,651.78,2.18232079]
[1740111708422,0.30634439,652.86,651.79,2.18232079]
[1740111708626,0.30634439,652.86,651.8,2.18232079]
[1740111708828,0.30634439,652.86,651.81,2.18232079]
[1740111709129,0.30634439,652.86,651.82,2.18232079]
[1740111709326,0.30634439,652.86,651.83,2.18232079]
[1740111709528,0.30634439,652.86,651.84,5.16752228]
[1740111709728,0.30634439,652.86,651.85,2.18232079]
[1740111709931,0.30634439,652.86,651.86,2.18232079]
[1740111710129,0.30634439,652.86,651.87,2.18232079]
[1740111710431,0.30634439,652.86,651.88,2.18232079]
[1740111710629,0.30634439,652.86,651.89,2.18232079]
[1740111710830,0.30634439,652.86,651.9,2.18232079]
[1740111711031,0.30634439,652.86,651.91,2.18232079]
[1740111711329,0.30634439,652.86,651.92,2.18232079]
[1740111711527,0.30634439,652.86,651.93,2.18232079]
[1740111711728,0.30634439,652.86,651.94,5.16752228]
[1740111711926,0.30634439,652.86,651.95,2.18232079]
[1740111712133,0.30634439,652.86,651.96,2.18232079]
[1740111712426,0.30634439,652.86,651.97,2.18232079]
[1740111712631,0.30634439,652.86,651.94,2.98520149]
[1740111713229,0.30634439,652.86,651.83,1.15061681]
[1740111713425,0.30634439,652.86,651.84,2.18190928]
[1740111713629,0.30634439,652.86,651.83,1.15061681]
[1740111714730,1.32,652.85,651.83,1.15061681]
[1740111714925,0.30635377,652.84,651.83,1.15061681]
[1740111715828,0.30635377,652.84,651.77,1.15061681]
[1740111720630,0.30635377,652.84,651.78,2.18033925]
[1740111720834,0.30635377,652.84,651.79,2.18033925]
[1740111721134,0.30635377,652.84,651.8,2.18033925]
[1740111721331,0.30635377,652.84,651.81,2.18033925]
[1740111721532,0.30635377,652.84,651.82,2.18033925]
[1740111721831,0.30635377,652.84,651.83,2.18033925]
[1740111722033,0.30635377,652.84,651.84,2.18033925]
[1740111722334,0.30635377,652.84,651.85,2.18033925]
[1740111722534,0.30635377,652.84,651.86,2.18033925]
[1740111722833,0.30635377,652.84,651.87,2.18033925]
[1740111723029,0.30635377,652.84,651.88,2.18033925]
[1740111723235,0.30635377,652.84,651.89,2.18033925]
[1740111723434,0.30635377,652.84,651.84,2.98216039]
[1740111723435,0.30635377,652.84,651.9,2.18033925]
[1740111723634,0.30635377,652.84,651.91,2.18033925]
[1740111723835,0.30635377,652.84,651.92,2.18033925]
[1740111724037,0.30635377,652.84,651.93,2.18033925]
[1740111724240,0.30635377,652.84,651.94,2.18033925]
[1740111724536,0.30635377,652.84,651.95,2.18033925]
[1740111724736,0.30635377,652.84,651.96,2.18033925]
[1740111724933,0.30635377,652.84,651.97,2.18033925]
[1740111725133,0.30635377,652.84,651.98,2.18033925]
[1740111725333,0.30635377,652.84,651.99,2.18033925]
[1740111725637,0.30635377,652.84,652.0,2.18033925]
[1740111725840,0.30635377,652.84,652.03,1.15061681]
[1740111726035,0.30635377,652.84,652.04,2.18033925]
[1740111726240,0.30635377,652.84,652.05,2.18033925]
[1740111726538,0.30635377,652.84,652.06,2.18033925]
[1740111726740,0.30635377,652.84,652.07,2.18033925]
[1740111726939,0.30635377,652.84,652.08,2.18033925]
[1740111727140,0.30635377,652.84,652.09,2.18033925]
[1740111727335,0.30635377,652.84,652.06,2.98216039]
[1740111727336,0.30635377,652.84,652.1,2.18033925]
[1740111727539,0.30635377,652.84,652.06,2.98216039]
[1740111727738,0.30635377,652.84,652.07,2.17659813]
[1740111727936,0.30635377,652.84,652.08,2.17659813]
[1740111728137,0.30635377,652.84,652.09,2.17659813]
[1740111728336,0.30635377,652.84,652.1,2.17659813]
[1740111728541,0.30635377,652.84,652.11,2.17659813]
[1740111728741,0.30635377,652.84,652.09,2.98216039]
[1740111728943,0.30635377,652.84,652.1,2.17582431]
[1740111729242,0.30635377,652.84,652.09,2.98216039]
[1740111729442,0.30635377,652.84,652.1,5.15747339]
[1740111729642,0.30635377,652.84,652.11,2.17530086]
[1740111729838,0.30635377,652.84,652.12,2.17530086]
[1740111730042,0.30635377,652.84,652.13,2.17530086]
[1740111730242,0.30635377,652.84,652.14,2.17530086]
[1740111730440,0.30635377,652.84,652.15,5.15746125]
[1740111730744,0.30635377,652.84,652.15,2.98216039]
[1740111732142,0.30635377,652.84,651.91,1.15061681]
[1740111732346,0.30635377,652.84,651.92,2.17365796]
[1740111732541,0.30635377,652.84,651.93,5.14748063]
[1740111732740,0.30635377,652.84,651.94,2.17365796]
[1740111733048,0.30635377,652.84,651.93,2.97382267]
[1740111734246,0.30635377,652.84,651.91,1.15061681]
[1740111734748,0.30635377,652.84,651.95,1.15061681]
[1740111737751,0.30635377,652.84,651.79,1.15061681]
[1740111739751,0.30635377,652.84,651.8,2.96957819]
[1740111740449,0.30635377,652.84,651.81,2.17050073]
[1740111740649,0.30635377,652.84,651.82,2.17050073]
[1740111740850,0.30635377,652.84,651.83,2.17050073]
[1740111741050,0.30635377,652.84,651.84,2.17050073]
[1740111741246,0.30635377,652.84,651.85,2.17050073]
[1740111741451,0.30635377,652.84,651.86,2.17050073]
[1740111741647,0.30635377,652.84,651.87,2.17050073]
[1740111741851,0.30635377,652.84,651.88,2.17050073]
[1740111742049,0.30635377,652.84,651.89,2.17050073]
[1740111742247,0.30635377,652.84,651.9,2.17050073]
[1740111742448,0.30635377,652.84,651.91,2.17050073]
[1740111742752,0.30635377,652.84,651.92,2.17050073]
[1740111742953,0.30635377,652.84,651.93,2.17050073]
[1740111743154,0.30635377,652.84,651.94,5.14007892]
[1740111743347,0.30635377,652.84,651.95,2.17050073]
[1740111743554,0.30635377,652.84,651.94,2.96957819]
[1740111743751,0.30635377,652.84,651.95,2.16950358]
[1740111743951,0.30635377,652.84,651.96,2.16949732]
[1740111744154,0.30635377,652.84,651.97,2.16949732]
[1740111744349,0.30635377,652.84,651.98,2.16949732]
[1740111744653,0.30635377,652.84,651.99,2.16949732]
[1740111744850,0.30635377,652.84,652.0,2.16949732]
[1740111745056,0.30635377,652.84,652.01,2.16949732]
[1740111745251,0.30635377,652.84,652.02,2.16949732]
[1740111745449,0.30635377,652.84,652.03,2.16949732]
[1740111745652,0.30635377,652.84,652.04,2.16949732]
[1740111745955,0.30635377,652.84,652.05,2.16949732]
[1740111746254,0.30635377,652.84,652.06,2.16949732]
[1740111746552,0.30635377,652.84,652.07,2.16949732]
[1740111746756,0.30635377,652.84,652.08,2.16949732]
[1740111746956,0.30635377,652.84,652.09,2.16949732]
[1740111747149,0.30635377,652.84,652.1,2.16949732]
[1740111747353,0.30635377,652.84,652.11,2.16949732]
[1740111747557,0.30635377,652.84,652.12,2.16949732]
[1740111747756,0.30635377,652.84,652.13,2.16949732]
[1740111747953,0.30635377,652.84,652.14,5.13907551]